Cogmind - Beta 17 @@@ ROGUE MODE // 2026.08.06 @ 16:19:35 Player: Quad Result: Destroyed by G-47 Trooper with Particle Gun Performance ------------- Evolutions (3) 1500 Regions Visited (5) 1000 Robots Destroyed (72) 360 Value Destroyed (2359) 2359 Prototype IDs (6) 120 Alien Tech Used (0) 0 Bonus (20) 20 TOTAL SCORE: 5359 Bonus ------- Follower Combat Kills 20 Cogmind --------- Core Integrity 0/700 Matter 266/300 Energy 92/100 System Corruption 0% Temperature Cool (22) Movement Flying (32) Location -7/Storage Parts ------- > --- POWER (1) -------- (None) > --- PROPULSION (3) --- Improved VTOL Module Improved Cesium-ion Thruster > --- UTILITY (6) ------ (None) > --- WEAPON (3) ------- (None) > --- INVENTORY (5) ---- Improved VTOL Module Improved VTOL Module Peak State ------------ > --- POWER ------------ Light Deuterium Engine > --- PROPULSION ------- Aluminum Leg Aluminum Leg Improved Aluminum Leg > --- UTILITY ---------- Large Storage Unit Machine Analyzer Terrain Scanner Terrain Scan Processor Advanced Targeting Computer Kinecellerator > --- WEAPON ----------- Assault Rifle Minigun High-powered Shotgun > --- INVENTORY -------- Heavy Ion Engine Light Nuclear Core Flight Unit Improved VTOL Module Hacking Suite EM Pulse Gun Assault Rifle Light Assault Rifle Shotgun Minigun High-powered Shotgun [Rating: 30] Favorites ----------- Power Ion Engine Engine Ion Engine Power Core Light Nuclear Core Propulsion Aluminum Leg Leg Aluminum Leg Flight Unit Improved VTOL Module Utility Large Storage Unit Device Kinecellerator Storage Large Storage Unit Processor Targeting Computer Weapon High-powered Shotgun Energy Gun EM Pulse Gun Ballistic Gun High-powered Shotgun Launcher Missile Launcher Build | -11 -10 -9 -8 -7 -7 ------- Run | Yrd Mat Mat Mat Fac Sto Slots Evolved 6 | . . 2 2 2 . Power . | . . . . . . Propulsion 1 | . . 1 . . . Utility 4 | . . 1 1 2 . Weapon 1 | . . . 1 . . Parts Attached 57 | 6 4 15 17 4 11 Power 9 | 1 . 3 3 . 2 Engine 7 | 1 . 3 2 . 1 Core 2 | . . . 1 . 1 Reactor . | . . . . . . Propulsion 24 | 2 . 7 7 . 8 Treads . | . . . . . . Leg 18 | 2 . 7 6 . 3 Wheel . | . . . . . . Hover . | . . . . . . Flight 6 | . . . 1 . 5 Utility 8 | 1 2 1 1 3 . Device 2 | . . . . 2 . Storage 2 | 1 1 . . . . Processor 4 | . 1 1 1 1 . Hackware . | . . . . . . Protection . | . . . . . . Artifact . | . . . . . . Weapon 16 | 2 2 4 6 1 1 Energy Gun 4 | 1 . . 2 . 1 Energy Cannon . | . . . . . . Ballistic Gun 11 | 1 2 4 3 1 . Ballistic Cannon . | . . . . . . Launcher 1 | . . . 1 . . Special Weapon . | . . . . . . Impact Weapon . | . . . . . . Slashing Weapon . | . . . . . . Piercing Weapon . | . . . . . . Special Melee Weapon . | . . . . . . Unidentified Prototypes 6 | . . 1 4 . 1 Parts Lost 22 | . . . 10 . 12 Power 3 | . . . 2 . 1 Propulsion 9 | . . . 4 . 5 Utility 1 | . . . . . 1 Weapon 9 | . . . 4 . 5 Highest Loss Streak 12 | . . . 4 . 12 To Critical Strikes . | . . . . . . Average Backups 10 | 1 2 9 14 11 10 Power 1 | . 1 1 2 2 1 Propulsion 1 | . . 1 1 2 3 Utility . | . . . 1 1 . Weapon 5 | . 1 6 7 6 4 Tool/Special . | . . . . . . Unused Backups 8 | . 1 3 . . 4 Power 3 | . 1 1 . . 1 Propulsion 3 | . . 1 . . 2 Utility 1 | . . . . . 1 Weapon 1 | . . 1 . . . Tool/Special . | . . . . . . Average Slot Usage (%) 91 | . 93 92 91 97 78 Engine 8 | . 14 11 6 7 5 Leg 24 | . 28 28 22 23 16 Device 1 | . . . . 13 11 Storage 9 | . 14 11 9 7 5 Processor 20 | . 8 19 26 23 17 Energy Gun 1 | . 7 . . . . Ballistic Gun 20 | . 20 21 19 23 17 Launcher 2 | . . . 5 . . Peak Build Rating 30 | 6 7 20 27 30 30 Average Rating 18 | 4 6 14 24 29 24 On Entrance 14 | . 6 7 17 25 30 Avg Prop Armor Cover (%) . | . . . . . . Naked Turns 15 | . . . . . 15 Heaviest Build 41 | 13 29 34 37 38 41 Greatest Support 38 | 20 20 33 38 33 33 Greatest Overweight (x) 3 | 1 1 1 3 1 1 Average Overweight (x) . | . . . 1 . . Largest Inventory Capacity 15 | 8 15 15 15 15 15 Average Capacity 13 | 7 9 15 15 15 12 Most Carried 15 | 2 6 13 15 14 15 Average Carried 10 | 1 2 9 14 11 10 Final Capacity 15 | 8 15 15 15 15 5 Final Carried 14 | 2 6 11 14 11 2 Class Distribution -------------------- 52% | Mutant 34% | Gunner 12% | Skirmisher Dominant Class ---------------- Mutant | -10/Materials Mutant | -9/Materials Gunner | -8/Materials Skirmisher | -7/Factory Skirmisher | -7/Storage Resources | -11 -10 -9 -8 -7 -7 ----------- Run | Yrd Mat Mat Mat Fac Sto Matter Collected 2104 | 248 80 441 860 . 475 Remotely . | . . . . . . Salvage Created 2199 | . 178 515 1108 . 398 Parts 128 | . 15 36 62 . 15 Haulers Intercepted 3 | . 1 1 1 . . Recyclers Shooed 2 | . . . 2 . . Parts Field Recycled . | . . . . . . Retrieved Matter . | . . . . . . Parts Self-Destructed . | . . . . . . Prevented . | . . . . . . Parts Restored . | . . . . . . Kills | -11 -10 -9 -8 -7 -7 ------- Run | Yrd Mat Mat Mat Fac Sto Combat Hostiles Destroyed 50 | . 6 12 23 . 9 Guns 45 | . 6 12 18 . 9 AOE 5 | . . . 5 . . Classes Destroyed 11 | . 3 4 4 . . Worker 6 | . . 1 5 . . Builder 3 | . . . 3 . . Hauler 3 | . 1 1 1 . . Recycler 1 | . . . 1 . . Operator 2 | . . . 2 . . Watcher 7 | . 1 2 4 . . Swarmer 7 | . 6 . . . 1 Grunt 31 | . . 9 17 . 5 Duelist 2 | . . 1 1 . . Sentry 7 | . . 2 3 . 2 Hunter 3 | . . . 2 . 1 Best Kill Streak 11 | . 3 6 11 . 2 Combat Bots Only 5 | . 3 5 5 . 2 Max Kills in Single Turn 4 | . 1 2 4 . 1 Gunslinging 1 | . . . 1 . . Exploded 1 | . . . 1 . . Melee . | . . . . . . Uniques/NPCs Destroyed . | . . . . . . Combat | -11 -10 -9 -8 -7 -7 -------- Run | Yrd Mat Mat Mat Fac Sto Hostile Shots Fired 507 | . 30 40 122 . 315 Missed 183 | . 11 12 36 . 124 Hits 324 | . 19 28 86 . 191 Melee 1 | . . . 1 . . Projectile 323 | . 19 28 85 . 191 Critical Strikes 6 | . . . 5 . 1 Damage Taken 3715 | . 146 337 1402 . 1830 Core 1046 | . 47 46 245 . 708 Absorbed by Shields . | . . . . . . Regen/Repaired (Parts) 32 | . . 32 . . . Core Remaining (%) 81 | 100 81 88 55 . . Volleys Fired 167 | . 19 40 72 . 36 Largest 3 | . 2 2 3 . 3 Hottest 86 | . 60 50 86 . 75 Shots Fired 355 | . 37 80 168 . 70 Gun 337 | . 37 80 150 . 70 Cannon . | . . . . . . Launcher 18 | . . . 18 . . Special . | . . . . . . Kinetic 316 | . 24 80 150 . 62 Thermal 8 | . . . . . 8 Explosive 18 | . . . 18 . . Electromagnetic 13 | . 13 . . . . Robot Hit Streak 23 | . 5 8 18 . 23 Robot Miss Streak 8 | . 6 6 8 . 2 Penetration Max . | . . . . . . Secondary Targets 7 | . 3 1 3 . . Max Gunslinging Chain 1 | . 1 1 1 . . Shots Hit Robots 262 | . 18 59 127 . 58 Core Hits 142 | . 10 31 78 . 23 Critical Kills 3 | . . . 2 . 1 Critical Parts Destroyed 2 | . . 1 . . 1 Critical Strikes 6 | . . 1 2 . 3 Burn 1 | . . . . . 1 Destroy 5 | . . 1 2 . 2 Melee Attacks . | . . . . . . Impact . | . . . . . . Slashing . | . . . . . . Piercing . | . . . . . . Sneak Attacks . | . . . . . . Combat Hostiles . | . . . . . . Follow-up Attacks . | . . . . . . Damage Inflicted 5566 | . 244 959 3376 . 987 Guns 4341 | . 204 959 2191 . 987 Cannons . | . . . . . . Explosions 1225 | . 40 . 1185 . . Melee . | . . . . . . Ramming . | . . . . . . Kinetic 4089 | . 97 959 2191 . 842 Thermal 185 | . 40 . . . 145 Explosive 1185 | . . . 1185 . . Electromagnetic 107 | . 107 . . . . Impact . | . . . . . . Slashing . | . . . . . . Piercing . | . . . . . . Highest Corruption . | . . . . . . Average Corruption . | . . . . . . Corruption Purged . | . . . . . . Corruption Blocked . | . . . . . . Overload Shots . | . . . . . . Overflow Damage 82 | . . . 82 . . Projectiles . | . . . . . . Explosions 82 | . . . 82 . . Melee . | . . . . . . Knockbacks . | . . . . . . Impact . | . . . . . . Kinetic . | . . . . . . Secondary . | . . . . . . Self-Inflicted Damage . | . . . . . . Shots . | . . . . . . Rammed . | . . . . . . Targets Rammed 1 | . . . 1 . . Kicked 1 | . . . 1 . . Crushed . | . . . . . . Highest Temperature 356 | . 60 356 63 . 120 Average Temperature 35 | . 25 109 13 . 39 Received Heat Transfer 1359 | . . 165 729 . 465 Effects 1 | . . 1 . . . Short Circuit 1 | . . 1 . . . Siege Activations . | . . . . . . Martial Activations . | . . . . . . Shielding Activations . | . . . . . . Robots Disrupted . | . . . . . . Combat Hostiles . | . . . . . . Robots Corrupted . | . . . . . . Combat Hostiles . | . . . . . . Parts Fried . | . . . . . . Impact Corruptions . | . . . . . . Robots Melted . | . . . . . . Combat Hostiles . | . . . . . . Parts Melted . | . . . . . . Heat Transferred 383 | . 50 . . . 333 Parts Sabotaged . | . . . . . . Parts Stolen . | . . . . . . Parts Stripped . | . . . . . . Power Chain Reactions 1 | . 1 . . . . Alert | -11 -10 -9 -8 -7 -7 ------- Run | Yrd Mat Mat Mat Fac Sto Maximum Alert Level 1 | . . 1 1 . . Low Security (%) 84 | 100 100 78 76 100 100 Level 1 15 | . . 21 23 . . Level 2 . | . . . . . . Level 3 . | . . . . . . Level 4 . | . . . . . . Level 5 . | . . . . . . High Security . | . . . . . . Max Security . | . . . . . . Peak Influence 344 | . 120 224 344 152 88 Initial 152 | . . 5 81 152 37 Average 87 | . 36 83 121 120 40 Influence Increases 1742 | . 165 506 847 . 224 Destroy 0b10 Robot/C 1020 | . 120 240 460 . 200 Destroy 0b10 Robot/NC 110 | . 10 20 80 . . Destroy Leader 230 | . 24 76 110 . 20 Allied During Kill 3 | . . . . . 3 Successful Hack 21 | . 8 3 10 . . Disable Machine 150 | . . 120 30 . . Destroy Structure 118 | . 3 2 112 . 1 Lose Combat Pursuer 90 | . . 45 45 . . Influence Decreases 1742 | . 152 325 705 254 306 Entered New Map 350 | . . 8 113 184 45 Time Decay 1171 | . 152 317 492 70 140 Lost Part 198 | . . . 100 . 98 Lost Ally 23 | . . . . . 23 Squads Dispatched 9 | . . 3 3 . 3 Investigation 2 | . . 1 1 . . Extermination . | . . . . . . Reinforcement 5 | . . 2 2 . 1 Assault . | . . . . . . Garrison 2 | . . . . . 2 Intercept . | . . . . . . Searches Triggered . | . . . . . . Construction Impeded . | . . . . . . Haulers Reinforced . | . . . . . . Active Scanning Responses . | . . . . . . Cargo Convoy Interrupts . | . . . . . . Stealth | -11 -10 -9 -8 -7 -7 --------- Run | Yrd Mat Mat Mat Fac Sto Distress Signals 5 | . . . 4 . 1 Communications Jammed . | . . . . . . Distress Signals . | . . . . . . Times Spotted 78 | . 8 22 30 . 18 Peak Tracking Total 7 | . 3 6 6 . 7 Tactical Retreats 6 | . . 3 3 . . Traps | -11 -10 -9 -8 -7 -7 ------- Run | Yrd Mat Mat Mat Fac Sto Traps Triggered 3 | . . 1 1 . 1 Indirectly . | . . . . . . Trap Hack Attempts . | . . . . . . Triggered . | . . . . . . Disarmed . | . . . . . . Reprogrammed . | . . . . . . Reused . | . . . . . . Traps Extracted . | . . . . . . Installed . | . . . . . . Triggered . | . . . . . . Machines | -11 -10 -9 -8 -7 -7 ---------- Run | Yrd Mat Mat Mat Fac Sto Machines Disabled 10 | . . 8 2 . . Max in Single Turn 2 | . . 2 1 . . Garrison Access 1 | . . . . 1 . Machines Repaired . | . . . . . . Machines Dismantled . | . . . . . . Machines Sabotaged . | . . . . . . Overloaded Fab Kills . | . . . . . . Hacking | -11 -10 -9 -8 -7 -7 --------- Run | Yrd Mat Mat Mat Fac Sto Machines Accessed 20 | . 5 3 8 3 1 Terminals 14 | . 4 2 5 2 1 Fabricators . | . . . . . . Repair Stations 1 | . . 1 . . . Recycling Units 2 | . 1 . 1 . . Scanalyzers 2 | . . . 2 . . Garrison Access 1 | . . . . 1 . Total Hacks 51 | . 8 8 30 4 1 Successful 22 | . 3 3 15 1 . Failed 28 | . 5 5 14 3 1 Catastrophic 14 | . 2 2 8 1 1 Database Lockouts 1 | . . . 1 . . Manual 28 | . 5 6 14 3 . Terminals 29 | . 5 6 14 3 1 Fabricators . | . . . . . . Repair Stations 2 | . . 2 . . . Recycling Units 5 | . 3 . 2 . . Scanalyzers 14 | . . . 14 . . Garrison Access 1 | . . . . 1 . Terminal Hacks 3 | . 1 1 1 . . Branch Access Points 3 | . 1 1 1 . . Fabricator Hacks . | . . . . . . Repair Station Hacks 2 | . . 2 . . . Scan Component 1 | . . 1 . . . Repair 1 | . . 1 . . . Recycling Unit Hacks 4 | . 2 . 2 . . Report Inventory 2 | . 1 . 1 . . Retrieve Components 2 | . 1 . 1 . . Scanalyzer 12 | . . . 12 . . Insert Component 5 | . . . 5 . . Analyze 3 | . . . 3 . . Retrieve Study 4 | . . . 4 . . Garrison Access Hacks 1 | . . . . 1 . Seal Access 1 | . . . . 1 . Unauthorized Hacks . | . . . . . . Terminals . | . . . . . . Fabricators . | . . . . . . Repair Stations . | . . . . . . Recycling Units . | . . . . . . Scanalyzers . | . . . . . . Garrison Access . | . . . . . . Data Cores Recovered . | . . . . . . Used . | . . . . . . Hacking Detections 16 | . 4 2 7 2 1 Full Trace Events . | . . . . . . Feedback Events . | . . . . . . Feedback Blocked . | . . . . . . Robot Schematics Acquired . | . . . . . . Robots Built . | . . . . . . Authchips . | . . . . . . Time . | . . . . . . Total Robot Build Rating . | . . . . . . Part Schematics Acquired 3 | . . . 3 . . Parts Built . | . . . . . . Authchips . | . . . . . . Time . | . . . . . . Total Part Build Rating . | . . . . . . Part Studies Acquired 4 | . . . 4 . . Parts Repaired 1 | . . 1 . . . Time 26 | . . 26 . . . Parts Recycled . | . . . . . . Recycled Matter . | . . . . . . Retrieved Matter . | . . . . . . Retrieved Components 12 | . 10 . 2 . . Parts Scanalyzed 3 | . . . 3 . . Part Schematics Acquired 3 | . . . 3 . . Parts Damaged . | . . . . . . Bothacking | -11 -10 -9 -8 -7 -7 ------------ Run | Yrd Mat Mat Mat Fac Sto Used RIF Installer . | . . . . . . Robots Hacked . | . . . . . . Non-combat . | . . . . . . Combat . | . . . . . . Robot Hacks Applied . | . . . . . . Relay Couplers Released . | . . . . . . Fabnet Peak Effective % . | . . . . . . Robots Rewired . | . . . . . . Allies Hacked . | . . . . . . Hacks Repelled . | . . . . . . Allies | -11 -10 -9 -8 -7 -7 -------- Run | Yrd Mat Mat Mat Fac Sto Total Allies 2 | . . . . . 2 Largest Group 2 | . . . . . 2 Highest-Rated Group 62 | . . . . . 62 Highest-Rated Ally 31 | . . . . . 31 Total Orders . | . . . . . . Ally Attacks 4 | . . . . . 4 Total Damage 22 | . . . . . 22 Kills 1 | . . . . . 1 Allies Corrupted . | . . . . . . Allies Melted . | . . . . . . Intel | -11 -10 -9 -8 -7 -7 ------- Run | Yrd Mat Mat Mat Fac Sto Active Infowar (turns) 2508 | . . 654 1465 143 246 Terrain 376 | . . . . 130 246 Machine Analysis 2508 | . . 654 1465 143 246 Robot Analysis Total . | . . . . . . Derelict Logs Recovered . | . . . . . . Drone Launches . | . . . . . . Drone Recoveries . | . . . . . . Exploration | -11 -10 -9 -8 -7 -7 ------------- Run | Yrd Mat Mat Mat Fac Sto Turns Passed 3408 | 57 576 826 1465 143 341 Spaces Moved 1397 | 35 342 316 483 81 140 Core 33 | 3 . . . . 30 Treads . | . . . . . . Legs 1339 | 32 342 316 483 81 85 Wheels . | . . . . . . Hover . | . . . . . . Flight 25 | . . . . . 25 Fastest Speed 29 | 50 120 120 105 105 29 Average Speed 161 | 132 135 179 180 168 117 Slowest Speed 315 | 190 190 190 315 175 175 Overloaded Moves . | . . . . . . Propulsion Burnouts . | . . . . . . Robots Hopped 2 | . . . . . 2 Potential Cave-ins . | . . . . . . Cave-ins Triggered . | . . . . . . Exploration Rate (%) 29 | 4 62 28 58 4 18 Regions Visited 5 Branch Regions 1 Pre-discovered Areas . | . . . . . . Known Exits Taken . | . . . . . . Unknown Exits Taken 5 | 1 1 1 1 1 . Scrap Searched . | . . . . . . Spaces Dug . | . . . . . . Terrain Destroyed 139 | . 2 . 137 . . Melee . | . . . . . . Projectile . | . . . . . . AOE 139 | . 2 . 137 . . Terrain Rammed . | . . . . . . Walls Destroyed . | . . . . . . Machines Disabled . | . . . . . . Actions | -11 -10 -9 -8 -7 -7 --------- Run | Yrd Mat Mat Mat Fac Sto Total 2231 | 42 422 495 930 87 255 Wait 544 | . 46 101 342 . 55 Move 1388 | 34 341 315 482 80 136 Hop 2 | . . . . . 2 Pick Up 28 | 2 6 8 7 . 5 Fast Attach 42 | 6 2 13 13 1 7 Attach 13 | . 1 . 6 2 4 Detach 6 | . 2 2 2 . . Swap 10 | . 1 2 1 2 4 Drop 30 | . 4 14 4 2 6 Fire 167 | . 19 40 72 . 36 Melee . | . . . . . . Ram . | . . . . . . Kick 1 | . . . 1 . . Crush . | . . . . . . Escape Stasis . | . . . . . . Rewire . | . . . . . . Trap . | . . . . . . Miscellaneous . | . . . . . . Route ------- -11/Scrapyard -10/Materials (discovered 5 exits: *Mat x3 / *Min x2) -9/Materials (discovered 3 exits: *Mat / Min x2) -8/Materials -7/Factory -7/Storage History --------- Turn | Location | Event 21 | -11/Scrapyard | Discovered new exit (range 15) 58 | -11/Scrapyard | Entered Materials 133 | -10/Materials | Discovered new exit (range 6) 246 | -10/Materials | Discovered new exit (range 13) 278 | -10/Materials | Discovered new exit (range 8) 305 | -10/Materials | Build established: Mutant 312 | -10/Materials | Discovered new exit (range 13) 485 | -10/Materials | Identified exit to Mines 630 | -10/Materials | Discovered new exit (range 3) 634 | -10/Materials | Entered another Materials area 634 | -9/Materials | Evolved 2 slots: Propulsion x1, Utility x1 971 | -9/Materials | Repaired EM Pulse Gun 1075 | -9/Materials | Discovered new exit (range 10) 1323 | -9/Materials | Identified exit to Mines 1460 | -9/Materials | Entered another Materials area 1460 | -8/Materials | Evolved 2 slots: Utility x1, Weapon x1 1772 | -8/Materials | Build established: Gunner 1904 | -8/Materials | Central database locked down 2600 | -8/Materials | Lost 4 parts (1p2n1w) 2732 | -8/Materials | Lost 4 parts (2n2w) 2893 | -8/Materials | Discovered new exit (range 14) 2925 | -8/Materials | Entered Factory 2925 | -7/Factory | Evolved 2 slots: Utility x2 3042 | -7/Factory | Discovered new exit (range 15) 3068 | -7/Factory | Entered Storage 3201 | -7/Storage | Build established: Skirmisher 3294 | -7/Storage | Garrison activated, responded to threat 3314 | -7/Storage | Released all parts (6) 3339 | -7/Storage | Met a pair of Derelict thieves 3357 | -7/Storage | Core integrity fell below 50% 3395 | -7/Storage | Core integrity fell below 20% 3409 | -7/Storage | Destroyed by G-47 Trooper with Particle Gun Last Messages --------------- 03375_ Assault Rifle destroyed. 03376_ R-06 Scavenger collects Imp. Heat Sink. 03376_ Acquired Beamcaster. 03379_ R-06 Scavenger collects Prototype Flight Unit. 03384_ R-06 Scavenger collects Carbon-fiber Leg. 03384_ R-06 Scavenger destroyed. 03388_ Y-54 Guardian suffers critical hit (Burn). 03389_ R-06 Scavenger collects Hpw. Shotgun+. 03390_ Acquired 18 matter. 03394_ Y-54 Guardian destroyed. 03395_ Slug penetrates Heavy Doors. 03397_ Beamcaster destroyed. 03399_ Acquired 83 matter. 03399_ Acquired Prototype Flight Unit. 03400_ Identified Imp. Cesium-ion Thruster. 03405_ Lgt. Nuclear Core destroyed. 03405_ Imp. VTOL Module destroyed. 03408_ Acquired 60 matter. 03408_ Slug penetrates Heavy Doors. 03409_ Acquired 22 matter. Map ----- +----------------------------------------------------+ | # !#[ "###??#????????????????????????? | | # *[+ ""###?#####?????????????????????? | | # [# ""#####?####????????????????????? | | # # ""#######??#????????????????????? | | # # ""#####?###?????????????????????? | | # # T"##?#?###??? ??????????????????? | | # # ""#?#####?#???"?????????????????? | | # # ""#######?##??"""???????????????? | | ######## ""###?##?##?????????????????????? | | # ![ # ""#########?????????????????????? | | #! ! # "#######?##?? ??? ?????????????? | | # + ######??#??##???????????????????? | | # # ###########?#???????????????????? | | # # ###?????#?#???????????? | | # # ######????????????????? | | # # ##?#?####?????????????? | | # # ####### ##??? ????????????????? | | # # # [# [ ##?? ????#????????????? | | # # # !#[ ##? ???#?#????????????? | | # ! # # #! u###? ?????????????????? | | # # # [ # ##?#??####????????????? | | # !# + #% ##T??????##???????????? | | ######## # ! # %#####+#####???????????? | | ??###??# # + ur #???????????? | | ?????? # # / # +???????????? | | ??"""??# ####### @ g r #???????????? | | ??"""? # #?#??###g####### #???????????? | | ??"""? # ###??### ###??? #???????????? | | ???????# #???###T %%!##??????"???????????? | | ??"""??# #?#??###"h"###??????????????????? | | ??"""??# #???## *Y #???????????????????? | | ??"""??+ #????# Y==#???????????????????? | | ???????# #????#* ==#???????????????????? | | ???????# ?????# = = =#???????????????????? | | ???????# ?????########???????????????????? | | ???????# ????????????????????????????????? | | ???????? ????????????????????????????????? | | ???????????????????????????????????????????? | | ???????????????????????????????????????????? | | ???????????????????????????????????????????? | | ???????????????????????????????????????????? | | ???????????????????????????????????????????? | | ???????????????????????????????????????????? | | ???????????????????????????????????????????? | | ???????????????????????????????????????????? | | ???????????????????????????????????????????? | | ???????????????????????????????????????????? | | ???????????????????????????????????????????? | | ???????????????????????????????????????????? | | ???????????????????????????????????????????? | +----------------------------------------------------+ Best States ------------- Heat Dissipation 34 Energy Generation 14 Energy Capacity 280 Matter Stores 300 Matter Capacity 300 Sight Range 16 Terrain Scan Range 14 Terrain Scan Density 85 Evasion (%) 62 Targeting Accuracy 13 Kinecelleration 30 Item Schematics ----------------- Hpw. Shotgun | -8/Materials | Scanalyzed EM Pulse Gun | -8/Materials | Scanalyzed Terrain Scan Processor | -8/Materials | Scanalyzed Robot Schematics ------------------ None Fabricated ------------ Nothing Repaired ---------- EM Pulse Gun | 28% | -9/Materials Studied --------- EM Pulse Gun | -8/Materials | Hacked Hpw. Shotgun | -8/Materials | Hacked Imp. Aluminum Leg | -8/Materials | Hacked Aluminum Leg | -8/Materials | Hacked Alien Tech Used ----------------- None Achievements -------------- We Love MA Challenges ------------ None Game ------ Seed MetaReactionInterpreter Manual? 0 Play Time 00:43:35 Cumulative 7.6 hours Start 2026.08.06 @ 15:33:29 End 2026.08.06 @ 16:19:35 Sessions 1 Manual Loads 0 Difficulty Rogue Special Mode None Game No. 11 Rogue 9 Adventurer 2 Explorer 0 Win Type - Total 0 Types 0/0/0/0/0/0/0/0/0/0 Lore% 6 Gallery% 12 Achievement% 13 Wizard Run 0 Options --------- Layout 0 ASCII 0 Keyboard 0 Movement Mouse Keybinds 0 Fullscreen 1 Font 18/SmallcapsGlow Map View 76x50 Zoom Use 0% Tactical HUD 1 Map Filters NONE Filters NONE Steam X RUN: 0b295a23-0c6b-4425-adfa-1aae04ad045d